Cogmind - Beta 15 @@@ ROGUE MODE // 2025.10.12 @ 08:33:31 Player: aliser Result: Self-destructed Performance ------------- Evolutions (2) 1000 Regions Visited (3) 600 Robots Destroyed (8) 40 Value Destroyed (155) 155 Prototype IDs (2) 40 Alien Tech Used (0) 0 Bonus (0) 0 TOTAL SCORE: 1835 Bonus ------- None Cogmind --------- Core Integrity 335/550 Matter 7/300 Energy 132/300 System Corruption 0% Temperature Cool (0) Movement Flying (114) Ox1 Location -8/Materials Parts ------- > --- POWER (1) -------- Enhanced Nuclear Core > --- PROPULSION (4) --- Flight Unit VTOL Module > --- UTILITY (4) ------ Small Storage Unit ECM Suite System Shield > --- WEAPON (2) ------- Improved Datajack > --- INVENTORY (8) ---- Medium Battery (150) Trap Scanner Improved Signal Interpreter Improved Light Armor Plating Medium Laser Plasma Cutter Peak State ------------ > --- POWER ------------ Enhanced Nuclear Core > --- PROPULSION ------- Flight Unit VTOL Module VTOL Module > --- UTILITY ---------- Small Storage Unit ECM Suite System Shield > --- WEAPON ----------- Improved Datajack > --- INVENTORY -------- Medium Battery Trap Scanner Improved Signal Interpreter Improved Light Armor Plating Medium Laser Plasma Cutter [Rating: 19] Favorites ----------- Power Light Ion Engine Engine Light Ion Engine Power Core Enhanced Nuclear Core Propulsion VTOL Module Treads Light Treads Hover Unit Hover Unit Flight Unit VTOL Module Utility Small Storage Unit Device Seismic Detector Storage Small Storage Unit Processor Visual Processing Unit Hackware System Shield Weapon Improved Assault Rifle Energy Gun Medium Laser Ballistic Gun Improved Assault Rifle Launcher Grenade Launcher Special Weapon Plasma Cutter Special Melee Weapon Improved Datajack Build | -11 -10 -9 -8 ------- Run | Yrd Mat Mat Mat Slots Evolved 4 | . . 2 2 Power . | . . . . Propulsion 2 | . . 1 1 Utility 2 | . . 1 1 Weapon . | . . . . Parts Attached 29 | 7 6 13 3 Power 5 | 2 2 . 1 Engine 4 | 2 2 . . Core 1 | . . . 1 Reactor . | . . . . Propulsion 10 | 2 2 6 . Treads 2 | 2 . . . Leg . | . . . . Wheel . | . . . . Hover 3 | . 2 1 . Flight 5 | . . 5 . Utility 5 | 1 1 2 1 Device 2 | . 1 1 . Storage 1 | 1 . . . Processor 1 | . . 1 . Hackware 1 | . . . 1 Protection . | . . . . Artifact . | . . . . Weapon 9 | 2 1 5 1 Energy Gun 3 | 1 . 2 . Energy Cannon . | . . . . Ballistic Gun 3 | 1 . 2 . Ballistic Cannon . | . . . . Launcher 1 | . 1 . . Special Weapon 1 | . . 1 . Impact Weapon . | . . . . Slashing Weapon . | . . . . Piercing Weapon . | . . . . Special Melee Weapon 1 | . . . 1 Unidentified Prototypes 2 | . . 1 1 Parts Lost 4 | . . . 4 Power 1 | . . . 1 Propulsion 2 | . . . 2 Utility 1 | . . . 1 Weapon . | . . . . Highest Loss Streak 4 | . . . 4 To Critical Strikes . | . . . . Average Backups 6 | 1 5 6 7 Power 1 | . 1 1 1 Propulsion . | . . . . Utility 2 | . 1 2 3 Weapon 1 | . 1 1 1 Tool/Special . | . . . . Unused Backups 10 | . 1 3 6 Power 2 | . 1 . 1 Propulsion . | . . . . Utility 6 | . . 1 5 Weapon 2 | . . 2 . Tool/Special . | . . . . Average Slot Usage (%) 90 | . 95 88 87 Engine 11 | . 14 11 8 Treads 7 | . 22 . . Hover 2 | . 5 2 . Flight 21 | . . 30 34 Device 12 | . 12 11 17 Storage 11 | . 14 11 9 Processor 4 | . . 10 . Hackware 2 | . . . 8 Energy Gun 5 | . 11 1 1 Ballistic Gun 8 | . 11 9 . Special Melee Weapon 1 | . . . 7 Peak Build Rating 19 | 6 8 16 19 Average Rating 11 | 3 6 12 17 On Entrance 6 | . 6 7 12 Naked Turns . | . . . . Heaviest Build 16 | 13 14 13 16 Greatest Support 40 | 40 40 18 16 Greatest Overweight (x) 3 | 1 1 3 3 Average Overweight (x) . | . . . . Largest Inventory Capacity 8 | 8 8 8 8 Average Capacity 7 | 7 8 8 8 Most Carried 8 | 5 8 8 8 Average Carried 6 | 1 5 6 7 Final Capacity 8 | 8 8 8 8 Final Carried 8 | 2 8 8 6 Class Distribution -------------------- 56% | Sprinter 39% | Mutant 3% | Scavenger-Mutant Dominant Class ---------------- Mutant | -10/Materials Sprinter | -9/Materials Sprinter | -8/Materials Resources | -11 -10 -9 -8 ----------- Run | Yrd Mat Mat Mat Matter Collected 324 | 146 130 47 1 Remotely . | . . . . Salvage Created 201 | . 154 47 . Parts 14 | . 11 3 . Haulers Intercepted 1 | . . 1 . Recyclers Shooed 1 | . 1 . . Parts Field Recycled . | . . . . Retrieved Matter . | . . . . Parts Self-Destructed . | . . . . Prevented . | . . . . Kills | -11 -10 -9 -8 ------- Run | Yrd Mat Mat Mat Combat Hostiles Destroyed 5 | . 5 . . Guns 2 | . 2 . . AOE 3 | . 3 . . Classes Destroyed 4 | . 3 1 . Hauler 1 | . . 1 . Watcher 2 | . 2 . . Swarmer 3 | . 3 . . Grunt 2 | . 2 . . Best Kill Streak 3 | . 3 1 . Combat Bots Only 3 | . 3 . . Max Kills in Single Turn 2 | . 2 1 . Gunslinging . | . . . . Exploded 2 | . 2 . . Melee . | . . . . Uniques/NPCs Destroyed . | . . . . Combat | -11 -10 -9 -8 -------- Run | Yrd Mat Mat Mat Hostile Shots Fired 55 | . 17 . 38 Missed 26 | . 6 . 20 Hits 29 | . 11 . 18 Melee 4 | . . . 4 Projectile 25 | . 11 . 14 AOE 2 | . . . 2 Critical Strikes 3 | . . . 3 Damage Taken 558 | . 150 21 387 Core 272 | . 45 12 215 Absorbed by Shields . | . . . . Regen/Repaired (Parts) 4 | . . . 4 Core Remaining (%) 93 | 100 82 97 . Volleys Fired 36 | . 20 13 3 Largest 2 | . 2 1 1 Hottest 70 | . 70 23 50 Shots Fired 53 | . 37 13 3 Gun 51 | . 35 13 3 Cannon . | . . . . Launcher 2 | . 2 . . Special . | . . . . Kinetic 31 | . 18 13 . Thermal 20 | . 17 . 3 Explosive 2 | . 2 . . Electromagnetic . | . . . . Robot Hit Streak 9 | . 9 3 2 Robot Miss Streak 4 | . 2 4 2 Penetration Max . | . . . . Secondary Targets . | . . . . Shots Hit Robots 32 | . 23 6 3 Core Hits 12 | . 11 1 . Critical Kills . | . . . . Critical Parts Destroyed . | . . . . Critical Strikes 1 | . 1 . . Burn 1 | . 1 . . Melee Attacks 3 | . . . 3 Impact . | . . . . Slashing . | . . . . Piercing . | . . . . Sneak Attacks 1 | . . . 1 Combat Hostiles . | . . . . Follow-up Attacks . | . . . . Damage Inflicted 521 | . 404 104 13 Guns 334 | . 226 95 13 Cannons . | . . . . Explosions 178 | . 178 . . Melee . | . . . . Ramming 9 | . . 9 . Kinetic 184 | . 89 95 . Thermal 150 | . 137 . 13 Explosive 178 | . 178 . . Electromagnetic . | . . . . Impact . | . . . . Slashing . | . . . . Piercing . | . . . . Highest Corruption . | . . . . Average Corruption . | . . . . Corruption Purged . | . . . . Corruption Blocked . | . . . . Overload Shots . | . . . . Overflow Damage 10 | . 10 . . Projectiles . | . . . . Explosions 10 | . 10 . . Melee . | . . . . Knockbacks . | . . . . Impact . | . . . . Kinetic . | . . . . Secondary . | . . . . Self-Inflicted Damage 9 | . . 9 . Shots . | . . . . Rammed . | . . . . Targets Rammed . | . . . . Kicked . | . . . . Crushed . | . . . . Highest Temperature 203 | . 203 . 12 Average Temperature 58 | . 65 . 6 Received Heat Transfer 111 | . 84 . 27 Siege Activations . | . . . . Martial Activations . | . . . . Shielding Activations . | . . . . Robots Disrupted . | . . . . Combat Hostiles . | . . . . Robots Corrupted . | . . . . Combat Hostiles . | . . . . Parts Fried . | . . . . Impact Corruptions . | . . . . Robots Melted . | . . . . Combat Hostiles . | . . . . Parts Melted 3 | . 3 . . Heat Transferred 518 | . 481 . 37 Parts Sabotaged . | . . . . Parts Stolen . | . . . . Parts Stripped . | . . . . Power Chain Reactions . | . . . . Alert | -11 -10 -9 -8 ------- Run | Yrd Mat Mat Mat Maximum Alert Level . | . . . . Low Security (%) 100 | 100 100 100 100 Level 1 . | . . . . Level 2 . | . . . . Level 3 . | . . . . Level 4 . | . . . . Level 5 . | . . . . High Security . | . . . . Max Security . | . . . . Peak Influence 98 | . 98 31 55 Initial 31 | . . 31 . Average 9 | . 17 3 13 Influence Increases 354 | . 177 42 135 Destroy 0b10 Robot/C 100 | . 100 . . Destroy 0b10 Robot/NC 15 | . 10 5 . Destroy Leader 26 | . 24 2 . Successful Hack 5 | . . 5 . Disable Machine 15 | . 15 . . Destroy Structure 13 | . 13 . . Partial Spotted 75 | . . 30 45 Lose Combat Pursuer 105 | . 15 . 90 Influence Decreases 349 | . 103 116 130 Entered New Map 43 | . . 43 . Time Decay 286 | . 103 73 110 Lost Part 20 | . . . 20 Squads Dispatched 7 | . 1 2 4 Investigation 5 | . 1 1 3 Extermination . | . . . . Reinforcement 2 | . . 1 1 Assault . | . . . . Garrison . | . . . . Intercept . | . . . . Searches Triggered . | . . . . Construction Impeded . | . . . . Haulers Reinforced . | . . . . Active Scanning Responses . | . . . . Cargo Convoy Interrupts . | . . . . Stealth | -11 -10 -9 -8 --------- Run | Yrd Mat Mat Mat Distress Signals 1 | . . 1 . Communications Jammed . | . . . . Distress Signals . | . . . . Times Spotted 35 | . 10 2 23 Peak Tracking Total 8 | . 4 4 8 Tactical Retreats 5 | . 1 . 4 Traps | -11 -10 -9 -8 ------- Run | Yrd Mat Mat Mat Traps Triggered . | . . . . Indirectly . | . . . . Trap Hack Attempts . | . . . . Triggered . | . . . . Disarmed . | . . . . Reprogrammed . | . . . . Reused . | . . . . Traps Extracted . | . . . . Installed . | . . . . Triggered . | . . . . Machines | -11 -10 -9 -8 ---------- Run | Yrd Mat Mat Mat Machines Disabled 1 | . 1 . . Max in Single Turn 1 | . 1 . . Machines Repaired . | . . . . Machines Dismantled . | . . . . Machines Sabotaged . | . . . . Overloaded Fab Kills . | . . . . Hacking | -11 -10 -9 -8 --------- Run | Yrd Mat Mat Mat Machines Accessed 7 | . 2 2 3 Terminals 5 | . 2 1 2 Fabricators . | . . . . Repair Stations 1 | . . . 1 Recycling Units 1 | . . 1 . Scanalyzers . | . . . . Garrison Access . | . . . . Total Hacks 22 | . 6 9 7 Successful 7 | . . 5 2 Failed 15 | . 6 4 5 Catastrophic 1 | . . . 1 Database Lockouts . | . . . . Manual 11 | . 5 . 6 Terminals 16 | . 6 4 6 Fabricators . | . . . . Repair Stations 1 | . . . 1 Recycling Units 5 | . . 5 . Scanalyzers . | . . . . Garrison Access . | . . . . Terminal Hacks 2 | . . 1 1 Zone Layout 2 | . . 1 1 Fabricator Hacks . | . . . . Repair Station Hacks . | . . . . Recycling Unit Hacks 4 | . . 4 . Recycle Component 4 | . . 4 . Scanalyzer . | . . . . Garrison Access Hacks . | . . . . Unauthorized Hacks 1 | . . . 1 Terminals . | . . . . Fabricators . | . . . . Repair Stations 1 | . . . 1 Patch 1 | . . . 1 Recycling Units . | . . . . Scanalyzers . | . . . . Garrison Access . | . . . . Data Cores Recovered . | . . . . Used . | . . . . Hacking Detections 6 | . 2 2 2 Full Trace Events 4 | . 1 1 2 Feedback Events . | . . . . Feedback Blocked . | . . . . Robot Schematics Acquired . | . . . . Robots Built . | . . . . Authchips . | . . . . Time . | . . . . Total Robot Build Rating . | . . . . Part Schematics Acquired . | . . . . Parts Built . | . . . . Authchips . | . . . . Time . | . . . . Total Part Build Rating . | . . . . Parts Repaired . | . . . . Time . | . . . . Parts Recycled 4 | . . 4 . Recycled Matter . | . . . . Retrieved Matter . | . . . . Retrieved Components . | . . . . Parts Scanalyzed . | . . . . Part Schematics Acquired . | . . . . Parts Damaged . | . . . . Bothacking | -11 -10 -9 -8 ------------ Run | Yrd Mat Mat Mat Used RIF Installer . | . . . . Robots Hacked . | . . . . Non-combat . | . . . . Combat . | . . . . Robot Hacks Applied . | . . . . Relay Couplers Released . | . . . . Fabnet Peak Effective % . | . . . . Robots Rewired . | . . . . Allies Hacked . | . . . . Hacks Repelled . | . . . . Allies | -11 -10 -9 -8 -------- Run | Yrd Mat Mat Mat Total Allies . | . . . . Largest Group . | . . . . Highest-Rated Group . | . . . . Highest-Rated Ally . | . . . . Total Orders . | . . . . Ally Attacks . | . . . . Total Damage . | . . . . Kills . | . . . . Allies Corrupted . | . . . . Allies Melted . | . . . . Intel | -11 -10 -9 -8 ------- Run | Yrd Mat Mat Mat Active Infowar (turns) 1500 | . 464 711 325 Optics 711 | . . 704 7 Seismic 1474 | . 464 685 325 ECM 150 | . . 26 124 Robot Analysis Total . | . . . . Derelict Logs Recovered . | . . . . Drone Launches . | . . . . Drone Recoveries . | . . . . Exploration | -11 -10 -9 -8 ------------- Run | Yrd Mat Mat Mat Turns Passed 1691 | 96 522 711 362 Spaces Moved 1427 | 56 359 342 670 Core 16 | 15 . . 1 Treads 241 | 41 200 . . Legs . | . . . . Wheels . | . . . . Hover 208 | . 159 49 . Flight 962 | . . 293 669 Fastest Speed 27 | 50 56 29 27 Average Speed 55 | 137 114 33 28 Slowest Speed 275 | 160 160 275 200 Overloaded Moves . | . . . . Propulsion Burnouts . | . . . . Robots Hopped 3 | . . . 3 Potential Cave-ins . | . . . . Cave-ins Triggered . | . . . . Exploration Rate (%) 28 | 6 33 23 53 Regions Visited 3 Branch Regions . Pre-discovered Areas . | . . . . Known Exits Taken . | . . . . Unknown Exits Taken 3 | 1 1 1 . Scrap Searched . | . . . . Spaces Dug . | . . . . Terrain Destroyed 15 | . 15 . . Melee . | . . . . Projectile . | . . . . AOE 15 | . 15 . . Terrain Rammed 1 | . . 1 . Walls Destroyed . | . . . . Machines Disabled . | . . . . Actions | -11 -10 -9 -8 --------- Run | Yrd Mat Mat Mat Total 2274 | 73 438 926 837 Wait 723 | 6 36 537 144 Move 1418 | 55 358 341 664 Hop 3 | . . . 3 Pick Up 28 | 5 9 6 8 Fast Attach 15 | 3 5 7 . Attach 14 | 3 . 6 5 Detach 4 | . . 4 . Swap 7 | 1 1 2 3 Drop 22 | . 9 9 4 Fire 36 | . 20 13 3 Melee 3 | . . . 3 Ram 1 | . . 1 . Kick . | . . . . Crush . | . . . . Escape Stasis . | . . . . Rewire . | . . . . Trap . | . . . . Miscellaneous . | . . . . Route ------- -11/Scrapyard -10/Materials -9/Materials (discovered 2 exits: *Mat / [*Sto]) -8/Materials (discovered 1 exit: [*Fac]) History --------- Turn | Location | Event 25 | -11/Scrapyard | Discovered new exit (range 14) 97 | -11/Scrapyard | Entered Materials 309 | -10/Materials | Build established: Mutant 496 | -10/Materials | Discovered new exit (range 15) 619 | -10/Materials | Entered another Materials area 619 | -9/Materials | Evolved 2 slots: Propulsion x1, Utility x1 967 | -9/Materials | Build established: Sprinter 1273 | -9/Materials | Discovered new exit (range 8) 1302 | -9/Materials | Discovered new exit (range 14) 1330 | -9/Materials | Entered another Materials area 1330 | -8/Materials | Evolved 2 slots: Propulsion x1, Utility x1 1654 | -8/Materials | Discovered new exit (range 8) 1692 | -8/Materials | Self-destructed Last Messages --------------- ALERT: Suspicious intruders detected, dispatching Cutter reinforcements to area. EXIT=FOUND VTOL Module destroyed. Lgt. Ion Engine destroyed. Lgt. Ion Engine severed. K-01 Serf destroyed. Knocked back. Acquired 1 matter. U-05 Engineer works on Hadron Collector. O-16 Technician: "IFF HANDSHAKE FAILED. SECURING TERMINAL." Knocked back. O-16 Technician destroyed. K-01 Serf collects debris. U-05 Engineer lays Concrete. K-01 Serf collects debris. U-05 Engineer lays Concrete. Seismic Detector destroyed. Identified Enh. Nuclear Core. VTOL Module destroyed. Map ----- +----------------------------------------------------+ | ??????????????????????? | | ### ??????????????????????? | | ## ??????????????????????? | | ## #### #???????????????????????? | | ## #??????????????????????????????? | | ## #??????????????????????????????? | | ## #??????????????????????????????? | | ## #??????????????????????????????? | | ## #??????????????????????????????? | | ## #??????????????????????????????? | | ## #??????????????????????????????? | | ### #??????????????????????????????? | | #??????????????????????????????? | | #???????????#############??????? | | #???????????# #??????? | | ######## #???????????# #??????? | | #?????# #???????????# #??????? | | #?????# #???????????# #??????? | | #?????# #???????????# #??????? | | #?????# #???????????# #?##???? | | ####### #??? ??????# #? ?# | | ## ## #??# ??????##+###+####+#? """ # | | + #??# ???????# c T ## "G" # | | ## ##### #??# #??????# ## " " # | | ### ##???# #??# #??#####c## ## # | | ##?# #????# #??# #??# @ # ^ ##!!! # | | #### #????# #??# #??#""" #^ ##!!! # | | #???##/#### ####""" # """ ##!!! # | | ########## # ##""" # """ # ]# | | ?# ## # ##""" # """ # # | | ?# ## [# !=## #! + = # | | ?# """ ## # ######+## ! # *# | | ?????????# == # $ #######? | | ?????????# == # = #??????? | | ?????????# # " ""#??????? | | ?????+######+## Y"#??????? | | ""#??????? | | #??????? | | [ ! #??????? | | +############### ##########+## + ! ??? | | ???????????????#######???????? # # "# | | ?????????????????????????????? # #!!! T# | | ?????????????????????????????/ !####?!! "# | | ?????????????????????????????/ #????? "# | | ????????????????????????????! #????? "# | | ???????????????????????????? =#?????? # | | ???????????????????????????#######????????## | | ???????????????????????????????????????????? | | ???????????????????????????????????????????? | | ???????????????????????????????????????????? | +----------------------------------------------------+ Best States ------------- Heat Dissipation 31 Energy Generation 17 Energy Capacity 300 Matter Stores 262 Matter Capacity 300 Sight Range 18 Terrain Scan Density 10 ECM Strength 1 Evasion (%) 64 Recoil Reduction 2 Defensive Hacking 10 Item Schematics ----------------- None Robot Schematics ------------------ None Fabricated ------------ Nothing Repaired ---------- Nothing Alien Tech Used ----------------- None Achievements -------------- None Challenges ------------ None Game ------ Seed HellfireHoverStripper Manual? 0 Play Time 00:43:08 Cumulative 17.5 hours Start 2025.10.12 @ 07:40:07 End 2025.10.12 @ 08:33:31 Sessions 1 Manual Loads 0 Difficulty Rogue Special Mode None Game No. 23 Rogue 23 Adventurer 0 Explorer 0 Win Type - Total 0 Types 0/0/0/0/0/0/0/0/0/0 Lore% 17 Gallery% 21 Achievement% 17 Wizard Run 0 Options --------- Layout 0 ASCII 0 Keyboard 0 Movement Mouse Keybinds 0 Fullscreen 1 Font 36/Smallcaps Map View 76x50 Zoom Use 0% Tactical HUD 0 Map Filters NONE Filters NONE Steam 1 RUN: f830cd80-7467-4e5b-8001-3ba5ef3f9ea3